bitfinex/quotes_ETHUSD_20260302
["timestamp","ask_amount","ask_price","bid_price","bid_amount"]
[1772434954156,0.001,1943.8,1943.3,1.28646354]
[1772434954374,1.287146,1943.8,1943.4,2.25998689]
[1772434955277,3.60974631,1943.8,1943.2,3.54647548]
[1772434957868,3.60974631,1943.8,1943.3,2.25998689]
[1772434960250,3.60974631,1943.8,1943.1,5.1463148]
[1772434960251,2.32260031,1943.7,1943.1,2.25998689]
[1772434960450,2.32260031,1943.7,1943.0,0.0011]
[1772434961674,2.32260031,1943.7,1943.0,2.26108689]
[1772434961877,2.32260031,1943.7,1943.0,3.54774877]
[1772434962070,2.32260031,1943.5,1943.0,2.26108689]
[1772434962279,0.001,1943.8,1943.3,1.51467166]
[1772434962581,0.001,1943.8,1943.4,2.25998689]
[1772434962776,0.001,1943.8,1943.2,1.51467166]
[1772434962777,3.60975142,1943.8,1943.2,2.25998689]
[1772434962978,2.32260031,1943.5,1943.0,0.0011]
[1772434964877,1.28640526,1943.4,1943.0,0.0011]
[1772434965289,2.32260031,1943.5,1943.0,0.0011]
[1772434965581,3.69831719,1943.6,1943.0,2.26108689]
[1772434965582,1.28631719,1943.6,1943.0,2.26108689]
[1772434965783,2.412,1943.6,1943.0,2.26108689]
[1772434965981,3.69828002,1943.6,1943.0,2.26108689]
[1772434966870,2.412,1943.6,1943.1,3.54659077]
[1772434967072,3.60886079,1943.7,1943.1,2.25998689]
[1772434967383,2.412,1943.6,1943.1,2.25998689]
[1772434967563,4.46332045,1943.6,1943.1,2.25998689]
[1772434967763,4.46332045,1943.6,1943.0,1.28771808]
[1772434968586,4.46332045,1943.6,1943.0,3.34849594]
[1772434969186,5.74965361,1943.6,1943.0,3.34849594]
[1772434969696,5.74965361,1943.6,1943.0,3.34853028]
[1772434970877,2.05132045,1943.5,1943.0,2.06187786]
[1772434971658,1.28640526,1943.4,1943.0,2.06187786]
[1772434971856,2.05132045,1943.3,1943.0,0.0011]
[1772434972162,2.05132045,1943.1,1942.9,0.0011]
[1772434973589,2.05132045,1943.0,1942.7,0.0011]
[1772434973806,2.05132045,1942.7,1942.4,0.0011]
[1772434974009,2.05132045,1942.6,1942.4,0.0011]
[1772434974177,2.05132045,1942.6,1942.3,0.0011]
[1772434974178,2.05132045,1942.5,1942.1,0.0011]
[1772434974382,2.05132045,1942.3,1942.1,0.0011]
[1772434974612,5.97899211,1942.2,1942.0,0.00153886]
[1772434974971,2.05132045,1942.1,1941.8,0.0011]
[1772434975885,3.33865309,1942.0,1941.8,0.0011]
[1772434976084,2.05132045,1941.9,1941.6,0.0011]
[1772434976486,2.05132045,1941.9,1941.6,0.0022]
[1772434976677,2.414,1941.8,1941.6,0.0022]
[1772434977176,2.05132045,1941.8,1941.6,0.0022]
[1772434977881,2.05132045,1941.8,1941.6,0.0011]
[1772434977882,1.28753154,1941.7,1941.6,0.0011]
[1772434979106,3.3388289,1941.8,1941.6,0.0011]
[1772434979499,4.85350056,1941.8,1941.6,0.0011]
[1772434979699,3.3388289,1941.8,1941.6,0.0011]
[1772434980408,2.417,1941.7,1941.6,0.0022]
[1772434980606,4.46832045,1941.7,1941.5,0.0011]
[1772434980943,2.05132045,1941.4,1940.4,7.21420604]
[1772434981134,2.05132045,1941.1,1940.4,3.349172]
[1772434982335,2.05132045,1941.1,1940.4,1.28839414]
[1772434982336,2.002,1941.0,1940.4,1.28839414]
[1772434982538,2.417,1940.9,1940.5,2.06077786]
[1772434982911,2.417,1940.9,1940.3,3.34920909]
[1772434983113,2.417,1940.9,1940.4,2.06077786]
[1772434983308,1.28792986,1941.1,1940.4,2.06077786]
[1772434983507,2.417,1941.0,1940.4,2.06077786]
[1772434983745,3.70476419,1941.4,1940.7,2.06077786]
[1772434984560,3.70476419,1941.4,1940.7,3.34896715]
[1772434984767,2.05132045,1941.3,1940.6,1.28821201]
[1772434984954,2.05132045,1941.3,1940.6,3.34898987]
[1772434985358,2.416,1941.2,1940.7,2.06077786]
[1772434986066,3.33908464,1941.4,1940.7,2.06077786]
[1772434986067,2.05132045,1941.4,1940.7,2.06077786]
[1772434986271,4.46732045,1941.4,1940.8,3.34890646]
[1772434986461,5.75505686,1941.4,1940.8,3.34890646]
[1772434986651,5.75505686,1941.4,1940.8,2.06077786]
[1772434987249,5.75505686,1941.4,1940.7,1.28814634]
[1772434987454,2.416,1941.4,1940.8,2.06077786]
[1772434987772,2.05132045,1941.5,1940.3,2.06077786]
[1772434987969,2.05132045,1941.5,1940.2,1.28852695]
[1772434987970,2.416,1941.4,1940.6,2.06077786]
[1772434988147,2.05132045,1941.5,1940.8,2.06077786]
[1772434988355,5.7550311,1941.5,1940.9,2.06077786]
[1772434989171,1.51467166,1941.4,1940.9,2.06077786]
[1772434989375,5.7550311,1941.5,1940.9,2.06077786]
[1772434989875,5.7550311,1941.5,1940.7,2.06077786]
[1772434990680,2.05232045,1941.4,1940.7,2.06187786]
[1772434990844,2.05232045,1941.4,1940.7,3.35006216]
[1772434991044,2.417,1941.3,1940.8,2.06077786]
[1772434991246,2.05232045,1941.4,1940.8,2.06077786]
[1772434991666,2.417,1941.3,1940.8,2.06077786]
[1772434992257,2.05132045,1940.8,1940.5,0.0011]
[1772434992459,2.05132045,1940.8,1940.0,0.00153886]
[1772434992460,2.05132045,1940.5,1940.0,0.00153886]
[1772434992659,1.51467166,1940.1,1939.5,2.06077786]
[1772434992867,3.93067166,1940.1,1939.5,3.34976829]
[1772434993066,3.93067166,1940.1,1939.5,2.06077786]
[1772434993381,5.98199211,1940.1,1939.3,1.28907332]
[1772434993556,5.98199211,1940.1,1939.1,1.28922735]
[1772434993557,1.51467166,1939.7,1939.1,1.28922735]
[1772434993761,2.05132045,1939.9,1939.1,1.28922735]
[1772434993955,3.27332045,1939.8,1939.0,3.35158579]
[1772434994159,3.56599211,1939.7,1939.0,3.35163476]
[1772434994555,4.85491316,1939.7,1939.0,3.35163476]
[1772434995091,7.26991316,1939.7,1939.0,1.2908569]
[1772434995385,7.26991316,1939.7,1939.0,1.29086172]
[1772434995386,2.80353406,1939.7,1939.0,1.29086172]
[1772434995586,2.415,1939.6,1939.0,1.29086172]
[1772434996065,2.0712233,1939.4,1938.4,2.07087215]
[1772434996228,2.0712233,1939.1,1938.4,3.36056892]
[1772434996381,3.58589496,1939.0,1938.3,1.28977906]
[1772434996579,3.36057072,1939.0,1938.2,3.36068941]
[1772434996774,2.0712233,1938.9,1938.2,3.36068941]
[1772434997214,2.0712233,1938.9,1938.2,3.31068941]
[1772434997714,3.58589496,1938.9,1938.2,1.28981726]
[1772434998212,2.12771857,1939.1,1938.1,2.11633208]
[1772434998411,2.12771857,1938.9,1938.0,4.27181368]
[1772434998794,3.41711032,1938.9,1938.0,4.27181368]
[1772434998989,3.41711412,1938.9,1938.0,4.27181368]
[1772434999191,5.83011412,1938.9,1938.0,4.27181368]
[1772434999799,4.54071857,1938.9,1938.1,2.11633208]
[1772435000117,2.413,1938.9,1938.1,2.11633208]
[1772435000302,3.64239023,1938.7,1938.0,2.15546551]
[1772435000607,1.28959042,1938.6,1938.0,2.15546551]
[1772435000810,3.41690998,1939.3,1938.4,2.11633208]
[1772435001136,2.12771857,1938.9,1938.1,2.11633208]
[1772435001798,2.412,1939.1,1938.1,2.11633208]
[1772435002309,4.53971857,1939.1,1938.1,2.11633208]
[1772435002498,1.28932439,1939.0,1938.4,1.28972348]
[1772435002698,1.51467166,1938.9,1938.2,1.28980413]
[1772435002900,2.12771857,1938.6,1938.1,0.0011]
[1772435003309,2.12771857,1938.5,1938.1,0.0011]
[1772435004608,3.64239023,1938.3,1937.8,0.0011]
[1772435004814,2.12771857,1938.2,1937.0,3.40845996]
[1772435005113,2.12771857,1938.2,1935.1,1.81046786]
[1772435005114,2.12771857,1937.1,1935.5,2.11633208]
[1772435005320,2.12771857,1937.1,1935.3,2.56853923]
[1772435005321,1.51467166,1936.9,1935.7,2.11633208]
[1772435005521,1.51467166,1936.9,1935.6,1.51467166]
[1772435005522,0.983,1937.1,1935.9,2.11633208]
[1772435005680,0.00153886,1937.0,1935.9,2.11633208]
[1772435005881,0.00153886,1937.0,1936.0,2.11633208]
[1772435006080,0.00153886,1937.0,1936.3,2.11633208]
[1772435006492,0.00153886,1937.0,1936.7,1.51467166]
[1772435006688,0.00153886,1937.0,1936.8,1.29078893]
[1772435006915,0.27113606,1938.0,1936.9,3.63100374]
[1772435007105,0.27113606,1938.0,1937.2,1.51467166]
[1772435007301,0.27113606,1938.0,1937.3,1.51467166]
[1772435007507,0.27113606,1938.0,1937.5,1.51467166]
[1772435007702,0.27113606,1938.0,1937.5,1.58458646]
[1772435008093,1.139,1938.3,1937.7,1.51467166]
[1772435008500,1.139,1938.3,1937.7,2.13153447]
[1772435008698,4.14225205,1938.6,1937.8,1.29012281]
[1772435008930,4.14225205,1938.6,1938.1,2.13153447]
[1772435009091,0.001,1938.8,1938.3,2.13153447]
[1772435009601,0.001,1938.8,1938.3,0.0699148]
[1772435010008,0.00153886,1939.0,1938.5,2.13153447]
[1772435010717,2.12771857,1939.8,1938.9,2.13153447]
[1772435010921,0.00153886,1940.0,1939.1,2.13153447]
[1772435011127,0.00153886,1940.0,1939.3,2.13153447]
[1772435011424,0.00153886,1940.0,1939.5,2.13153447]
[1772435011621,3.73614365,1940.7,1939.7,2.13153447]
[1772435011622,2.4479373,1940.7,1939.7,2.13153447]
[1772435011795,4.25925304,1940.6,1939.5,0.0699148]
[1772435012222,2.13153447,1940.0,1939.5,0.0699148]
[1772435012518,2.13153447,1940.0,1939.0,0.00153886]
[1772435012519,4.25925304,1939.8,1939.0,0.00153886]
[1772435012687,1.2888591,1939.7,1939.0,0.00153886]
[1772435013087,3.41652273,1939.8,1939.0,0.00153886]
[1772435013617,5.5480572,1939.8,1939.0,0.00153886]
[1772435013810,4.25925304,1939.7,1939.0,0.00153886]
[1772435014119,5.84844479,1939.9,1939.0,0.00153886]
[1772435014322,4.25925304,1939.8,1939.0,0.00153886]
[1772435014617,1.2888591,1939.7,1939.0,0.00153886]
[1772435015622,3.41657767,1939.7,1939.0,0.00153886]
[1772435016396,0.001,1939.9,1939.1,2.13153447]
[1772435016629,0.001,1939.9,1939.1,4.24786655]
[1772435016801,0.001,1939.9,1939.2,1.28919141]
[1772435017001,0.001,1939.9,1939.5,2.13153447]
[1772435017225,0.001,1939.9,1939.2,5.55226035]
[1772435017395,0.001,1939.9,1939.4,2.13153447]
[1772435017720,0.001,1939.9,1939.2,5.53705796]
[1772435018223,0.001,1939.9,1939.4,2.13153447]
[1772435018723,0.001,1939.9,1939.5,1.288992]
[1772435018909,1.28836078,1940.5,1939.5,1.288992]
[1772435019423,9.41179473,1940.8,1939.6,2.13153447]
[1772435019424,1.28824463,1940.7,1939.6,2.13153447]
[1772435019615,3.41589356,1940.8,1939.8,2.13153447]
[1772435019819,1.28806223,1940.9,1939.8,4.24786655]
[1772435020035,6.62367489,1941.0,1939.8,4.24786655]
[1772435020036,0.00153886,1941.0,1940.2,2.13153447]
[1772435020528,0.00153886,1941.0,1940.4,2.13153447]
[1772435020697,0.00153886,1941.0,1940.2,1.28852695]
[1772435021125,0.00153886,1941.0,1940.2,5.5363935]
[1772435021301,0.00153886,1941.0,1940.6,2.13153447]
[1772435021619,0.00153886,1941.0,1940.4,4.24786655]
[1772435021933,0.00153886,1941.0,1940.4,2.13153447]
[1772435022503,0.00153886,1941.0,1940.4,4.24786655]
[1772435022716,0.00153886,1941.0,1940.5,2.11633208]
[1772435022910,0.00153886,1941.0,1940.6,1.28826136]
[1772435023127,2.13153447,1940.9,1939.8,5.155168]
[1772435023329,2.12925743,1941.0,1939.7,1.28880962]
[1772435023330,4.25925304,1940.7,1939.7,1.28880962]
[1772435024232,2.12771857,1940.7,1939.7,1.28880962]
[1772435025440,1.28826136,1940.6,1939.6,5.15568218]
[1772435025799,1.28826136,1940.6,1939.6,7.27201426]
[1772435026509,3.41597993,1940.6,1939.6,5.15568218]
[1772435026830,5.5475144,1940.6,1939.2,7.53899149]
[1772435027015,3.41597993,1940.6,1939.3,5.15646548]
[1772435027217,5.5475144,1940.6,1939.3,5.15646548]
[1772435027432,1.28846054,1940.3,1939.3,5.15646548]
[1772435028122,1.28846054,1940.3,1939.3,1.28912494]
[1772435028323,3.38174635,1940.3,1939.3,1.28912494]
[1772435029138,2.09328581,1940.1,1939.1,0.0011]
[1772435029444,1.28872622,1939.9,1939.1,0.0011]
[1772435030025,5.15447609,1940.1,1939.2,2.13153447]
[1772435030229,5.15447609,1940.1,1939.1,0.0011]
[1772435030748,4.22482028,1939.9,1939.1,0.0011]
[1772435031060,4.51028581,1939.8,1939.1,0.0011]
[1772435031216,4.22482028,1939.7,1939.1,0.0011]
[1772435031423,2.13153447,1939.5,1939.1,0.0011]
[1772435031845,1.28892555,1939.6,1939.1,0.0011]
[1772435032629,3.38221136,1939.6,1939.0,0.00263886]
[1772435034720,4.54853447,1939.8,1939.0,0.00263886]
[1772435034721,3.70584505,1939.8,1939.0,0.00263886]
[1772435034924,1.28884505,1939.8,1939.0,0.00263886]
[1772435035223,3.70584505,1939.8,1939.0,0.00263886]
[1772435035438,2.13153447,1939.7,1939.0,0.00263886]
[1772435035819,5.79913086,1939.8,1939.0,0.00263886]
[1772435036020,1.28877085,1939.9,1939.0,4.10747948]
[1772435036316,3.38192402,1940.1,1939.1,1.97330615]
[1772435036520,3.38192402,1940.1,1939.2,3.42072588]
[1772435037739,2.09328581,1940.1,1939.2,3.42072588]
[1772435037934,1.28859663,1940.1,1939.2,3.42072588]
[1772435038138,2.416,1940.2,1939.4,4.10484062]
[1772435038338,1.28933733,1940.5,1939.6,2.13153447]
[1772435038547,1.28933733,1940.5,1939.7,1.2888591]
[1772435038723,0.001,1940.5,1939.7,1.2888591]
[1772435039253,2.13253447,1940.5,1939.6,1.28888049]
[1772435039431,0.001,1940.5,1939.6,3.26218664]
[1772435039978,0.001,1940.5,1939.7,4.10484062]
[1772435040271,2.09428581,1940.5,1939.6,1.28888049]
[1772435040566,1.28852695,1940.2,1939.3,1.28912494]
[1772435041374,0.001,1940.5,1939.6,4.10484062]
[1772435041667,1.28934212,1940.5,1939.6,4.10484062]
[1772435042167,4.22482028,1940.4,1939.3,3.26243109]
[1772435042577,2.41,1940.3,1939.3,3.26243109]
[1772435043732,1.28935603,1940.5,1939.5,4.10484062]
[1772435043929,1.28935603,1940.5,1939.6,1.97330615]
[1772435046449,1.28935603,1940.5,1939.7,1.2888591]
[1772435047356,0.001,1940.5,1939.7,3.26216525]
[1772435047563,0.001,1940.5,1939.8,1.97330615]
[1772435048166,2.09428581,1940.5,1939.6,1.28888004]
[1772435048469,1.28839414,1940.4,1939.6,1.28888004]
[1772435050175,1.28839414,1940.4,1939.7,1.97330615]
[1772435050343,2.13153447,1940.3,1939.4,1.28905847]
[1772435050537,4.22482028,1940.3,1939.4,1.28905847]
[1772435050737,4.22482028,1940.3,1939.3,3.26240621]
[1772435050738,2.09328581,1940.2,1939.3,3.26240621]
[1772435051546,4.22482028,1940.2,1939.3,1.97330615]
[1772435051747,4.22482028,1940.2,1939.3,3.26241907]
[1772435052475,1.28859337,1940.1,1939.2,0.0011]
[1772435052674,1.28859337,1940.1,1939.2,1.97440615]
[1772435053175,1.28859337,1940.1,1939.7,0.0011]
[1772435053869,1.28857635,1940.2,1939.7,0.0011]
[1772435054175,7.38519659,1940.3,1939.7,0.0011]
[1772435054684,4.10778284,1940.2,1939.7,0.0011]
[1772435055400,2.13153447,1939.8,1939.5,0.0011]
[1772435055687,2.396,1939.7,1939.4,0.0011]
[1772435056115,2.13153447,1939.6,1939.2,0.0011]
[1772435056250,4.10778284,1939.6,1939.2,0.0011]
[1772435056446,1.288992,1939.5,1939.2,0.0011]
[1772435056651,3.26524037,1939.5,1939.2,0.0011]
[1772435059378,1.288992,1939.5,1939.2,0.0011]
[1772435060880,3.68488763,1939.7,1939.2,0.0011]
[1772435061579,7.38657318,1939.7,1939.2,0.0011]
[1772435061879,2.401,1939.8,1939.2,0.0011]
[1772435062078,3.68979265,1939.8,1939.2,0.0011]
[1772435063687,5.74068215,1939.8,1939.2,0.0011]
[1772435065082,2.0508895,1939.7,1939.2,0.0011]
[1772435065362,2.13153447,1939.4,1938.9,0.0011]
[1772435065557,2.404,1939.3,1938.9,0.0011]
[1772435065884,3.69313114,1939.3,1938.9,0.0011]
[1772435066682,3.69313114,1939.3,1939.2,0.0011]
[1772435067271,2.404,1939.3,1939.2,0.0011]
[1772435067470,3.69312494,1939.3,1939.2,0.0011]
[1772435067673,2.404,1939.3,1939.2,0.0011]
[1772435069494,3.69312494,1939.3,1939.2,0.0011]
[1772435069991,2.404,1939.3,1939.2,0.0011]
[1772435070176,3.69312494,1939.3,1939.2,0.0011]
[1772435070378,5.74401444,1939.3,1938.9,0.0011]
[1772435070583,3.69312494,1939.3,1938.9,0.0011]
[1772435071775,1.288992,1939.5,1938.9,0.0011]
[1772435073391,2.408,1939.4,1938.9,0.0011]
[1772435073576,4.4588895,1939.4,1938.9,0.0011]
[1772435073775,4.4588895,1939.4,1938.8,0.0011]
[1772435073776,3.34021389,1939.0,1938.8,0.0011]
[1772435074092,3.92970317,1938.9,1938.5,0.003]
[1772435074976,2.408,1938.9,1938.5,0.003]
[1772435075172,4.4588895,1938.9,1938.5,0.003]
[1772435075797,1.28945739,1938.8,1938.5,0.003]
[1772435076298,2.0508895,1938.7,1938.1,0.0011]
[1772435076479,2.409,1938.6,1938.1,0.0011]
[1772435077505,2.0508895,1938.5,1938.1,0.0011]
[1772435077877,1.28972348,1938.4,1938.1,0.0011]
[1772435078780,1.28972348,1938.4,1938.3,0.0011]
[1772435080387,3.6997108,1938.5,1938.3,0.0011]
[1772435083400,5.7506003,1938.5,1938.1,0.0011]
[1772435084905,1.52170317,1938.3,1937.4,1.88331504]
[1772435085087,1.52170317,1938.4,1937.2,1.88331504]
[1772435085088,3.57259267,1938.0,1937.2,1.88331504]
[1772435085284,3.57259267,1937.8,1937.0,0.00153886]
[1772435085977,1.52170317,1937.6,1937.0,0.00153886]
[1772435086177,2.417,1937.5,1937.0,0.00153886]
[1772435086396,2.0508895,1937.4,1937.0,0.00153886]
[1772435086780,1.29045578,1937.3,1937.0,0.00153886]
[1772435087881,3.48541138,1938.0,1937.0,1.89522349]
[1772435088104,2.417,1937.7,1937.0,1.89522349]
[1772435088307,4.38070821,1937.7,1937.0,0.00153886]
[1772435088606,1.96370821,1937.5,1937.0,0.00153886]
[1772435089000,1.29038918,1937.4,1937.0,0.00153886]
[1772435089199,2.417,1937.3,1937.0,0.00153886]
[1772435090013,4.38070821,1937.3,1936.5,1.89368463]
[1772435090309,2.417,1937.3,1936.5,1.89368463]
[1772435090507,2.417,1937.3,1937.0,0.0011]
[1772435091088,1.2905224,1937.2,1937.0,0.0011]
[1772435091407,7.57902297,1937.3,1937.0,0.0011]
[1772435091408,3.70745984,1937.3,1937.0,0.0011]
[1772435092883,2.417,1937.3,1937.0,0.0011]
[1772435093109,3.70745801,1937.3,1937.0,0.0011]
[1772435097316,2.417,1937.3,1937.0,0.0011]
[1772435097523,3.25379594,1937.9,1937.1,1.52170317]
[1772435097725,3.25379594,1937.9,1937.2,1.89368463]
[1772435098411,1.96370821,1937.5,1937.0,0.0011]
[1772435098620,2.421,1937.4,1937.0,0.0011]
[1772435098801,1.96370821,1937.1,1936.1,1.89368463]
[1772435099002,1.52170317,1936.9,1936.1,1.89368463]
[1772435099211,1.52170317,1936.9,1936.0,1.29284694]
[1772435099212,3.90770821,1936.8,1936.0,0.00153886]
[1772435099414,1.29092223,1936.6,1936.0,0.00153886]
[1772435099598,3.25463044,1936.6,1936.0,0.00153886]
[1772435100004,1.29090636,1936.7,1936.0,0.00153886]
[1772435100203,1.29090636,1936.7,1936.0,1.52324203]
[1772435100411,1.29090636,1936.7,1936.0,0.00153886]
[1772435100721,3.25461457,1936.7,1936.0,0.00153886]
[1772435101093,1.96370821,1936.6,1936.0,0.00153886]
[1772435101296,1.29090636,1936.7,1936.0,0.00153886]
[1772435101524,1.29090636,1936.7,1936.0,1.29286117]
[1772435101939,1.96370821,1936.6,1936.0,0.00153886]
[1772435102103,3.48541138,1936.2,1935.3,4.46222386]
[1772435102301,3.48541138,1936.2,1935.0,5.16927593]
[1772435102302,1.96370821,1935.9,1935.0,0.00153886]
[1772435102519,3.48541138,1935.8,1935.0,1.29352115]
[1772435102844,1.96370821,1935.6,1935.0,0.00153886]
[1772435102996,2.419,1935.5,1935.0,0.00153886]
[1772435103197,4.38270821,1935.5,1935.0,0.00153886]
[1772435103399,1.29172264,1935.4,1935.0,0.00153886]
[1772435103626,3.25543085,1935.4,1935.0,0.00153886]
[1772435103833,1.96370821,1936.3,1935.2,6.45879414]
[1772435104038,1.96370821,1936.3,1935.2,3.4153878]
[1772435104341,2.419,1936.6,1936.0,1.52170317]
[1772435104663,2.419,1936.6,1935.2,1.52170317]
[1772435104664,3.48541138,1936.3,1935.2,1.52170317]
[1772435104926,1.96370821,1936.7,1935.6,1.52170317]
[1772435105140,1.399,1936.5,1935.6,1.52170317]
[1772435105720,2.69005165,1936.5,1935.7,1.29152244]
[1772435105925,1.399,1936.5,1935.7,1.29152244]
[1772435106137,5.01041138,1936.4,1935.3,1.29178938]
[1772435106305,1.52170317,1936.2,1935.3,1.29178938]
[1772435106506,1.52170317,1936.2,1935.1,1.52170317]
[1772435106507,3.48541138,1936.0,1935.1,1.2918848]
[1772435106707,3.48541138,1936.0,1935.0,0.00153886]
[1772435106708,1.96370821,1935.8,1935.0,1.29347851]
[1772435106934,1.52170317,1935.6,1935.0,0.00153886]
[1772435107114,1.52170317,1935.6,1934.1,5.1702854]
[1772435107115,1.96370821,1935.1,1934.1,5.16982887]
[1772435107311,1.52170317,1935.7,1934.4,3.04340634]
[1772435107522,1.52170317,1935.7,1934.6,1.52170317]
[1772435107523,1.043,1935.6,1934.6,1.52170317]
[1772435107734,1.043,1935.6,1934.7,1.29219]
[1772435107950,2.33459448,1935.6,1934.7,1.29219]
[1772435108304,3.85629765,1935.6,1934.7,1.29219]
[1772435109440,1.2928627,1936.0,1935.2,1.52170317]
[1772435109602,0.00153886,1936.0,1935.4,1.52170317]
[1772435109934,0.00153886,1936.0,1935.5,1.2916559]
[1772435110734,1.52324203,1936.0,1935.1,1.29187227]
[1772435111041,3.48695024,1936.0,1935.0,1.29194741]
[1772435111334,3.48695024,1936.0,1934.9,5.16812045]
[1772435111335,1.52170317,1935.6,1934.5,5.16926659]
[1772435111537,1.96370821,1935.7,1934.6,3.4153878]
[1772435111705,1.96524707,1936.0,1934.9,1.52170317]
[1772435111901,4.77827981,1936.0,1934.9,1.52170317]
[1772435112103,1.52170317,1935.8,1934.7,1.89368463]
[1772435112302,3.48541138,1935.8,1934.6,1.52170317]
[1772435112533,2.157,1935.7,1934.5,5.16926659]
[1772435112734,2.157,1935.7,1934.6,1.52170317]
[1772435112932,2.157,1935.7,1934.8,1.52170317]
[1772435113130,1.29286843,1936.0,1934.8,3.4153878]
[1772435113335,1.29286843,1936.0,1935.0,1.52170317]
[1772435113635,3.48541138,1935.9,1934.8,1.89368463]
[1772435113800,1.29286843,1936.0,1935.1,1.52170317]
[1772435113801,0.00153886,1936.0,1935.1,1.52170317]
[1772435114005,3.71086288,1936.0,1934.9,1.29205643]
[1772435114435,0.00153886,1936.0,1935.0,1.52170317]
[1772435114613,0.00153886,1936.0,1935.5,1.52170317]
[1772435114817,0.00153886,1936.0,1935.2,1.52170317]
[1772435115019,1.29287111,1936.0,1935.2,1.52170317]
[1772435115216,1.94251433,1935.9,1934.9,1.29205643]
[1772435115415,3.4642175,1935.8,1934.9,1.29205643]
[1772435115934,3.23403677,1935.7,1934.7,1.29329]
[1772435116238,1.52170317,1935.6,1934.7,1.29329]
[1772435116646,1.52170317,1935.2,1934.7,0.0011]
[1772435116856,4.35951433,1935.3,1934.7,0.0011]
[1772435117063,1.94251433,1935.3,1934.7,0.0011]
[1772435117343,2.416,1935.6,1934.7,0.0011]
[1772435117546,2.416,1935.9,1935.0,1.52170317]
[1772435117716,1.29145572,1935.8,1934.9,1.29205643]
[1772435117919,3.70743574,1935.9,1934.9,1.29205643]
[1772435118437,3.36580992,1935.8,1934.9,1.29205643]
[1772435119044,1.84410675,1935.8,1934.9,1.29205643]
[1772435120043,1.29152244,1935.7,1934.8,5.16822574]
[1772435120820,1.29152244,1935.7,1934.8,1.29212321]
[1772435121217,3.13562919,1935.7,1934.8,1.29212321]
[1772435123138,3.13563024,1935.7,1934.8,1.29212321]
[1772435123515,0.00153886,1936.0,1935.6,1.52170317]
[1772435123715,0.00153886,1936.0,1935.4,1.52170317]
[1772435124125,0.00153886,1936.0,1935.3,5.16689056]
[1772435124946,0.00153886,1936.0,1935.5,1.52170317]
[1772435125451,0.001,1936.2,1935.7,1.52170317]
[1772435126122,0.001,1936.2,1935.5,1.2916559]
[1772435126930,0.001,1936.2,1935.4,1.29166893]
[1772435127152,0.001,1935.9,1935.4,1.29166893]
[1772435127943,0.001,1935.9,1935.4,2.8133721]
[1772435128127,0.001,1936.2,1935.8,1.52170317]
[1772435128847,1.84410675,1936.8,1935.8,1.52170317]
[1772435129053,3.13491041,1936.8,1936.0,1.52170317]
[1772435129346,1.84410675,1936.8,1936.0,1.52170317]
[1772435129650,3.13491725,1936.8,1935.8,1.52170317]
[1772435129954,3.13491725,1936.8,1935.3,5.16704058]
[1772435129955,1.52170317,1936.2,1935.1,1.29192289]
[1772435130247,1.29118892,1936.2,1935.1,4.72839219]
[1772435130430,1.29118892,1936.2,1935.3,1.52170317]
[1772435130634,1.29118892,1936.2,1935.2,4.05167665]
[1772435131180,3.13524731,1936.3,1935.4,2.13691052]
[1772435131525,3.13524731,1936.3,1935.3,1.91476613]
[1772435131725,3.13524731,1936.3,1935.2,2.13691052]
[1772435131952,1.84410675,1936.2,1935.2,2.13691052]
[1772435132155,1.29125561,1936.1,1935.3,1.29178938]
[1772435132358,1.29110698,1936.4,1935.3,1.29178938]
[1772435132529,1.29110698,1936.4,1935.3,3.20655551]
[1772435132851,1.2909024,1936.7,1935.7,4.05167665]
[1772435133155,1.2909024,1936.7,1935.8,1.91476613]
[1772435133349,4.24710675,1936.8,1935.8,1.91476613]
[1772435133552,2.403,1936.8,1935.9,4.05167665]
[1772435134148,3.69379349,1936.8,1935.9,4.05167665]
[1772435134351,1.84410675,1936.7,1936.0,1.29132231]
[1772435134553,1.84410675,1936.7,1935.5,5.1664229]
[1772435134554,3.98101727,1936.3,1935.2,1.29178938]
[1772435134728,1.84410675,1936.3,1935.2,3.4286999]
[1772435135858,1.84410675,1936.3,1935.4,2.13691052]
[1772435136257,1.84410675,1936.3,1935.2,5.34346603]
[1772435136433,1.29118892,1936.2,1935.2,5.34346603]
[1772435137563,1.29118892,1936.2,1935.2,7.26946603]
[1772435137745,1.84410675,1936.1,1935.2,1.29178938]
[1772435138362,1.29132231,1936.0,1935.2,1.29178938]
[1772435138731,3.13542906,1936.0,1935.2,1.29178938]
[1772435138937,1.84410675,1935.9,1935.0,0.00263886]
[1772435139248,1.84410675,1935.9,1935.3,0.0011]
[1772435139554,1.84410675,1935.5,1935.2,0.0011]
[1772435139950,1.84410675,1935.8,1935.2,0.0011]
[1772435140464,3.13542906,1936.0,1935.2,0.0011]
[1772435141037,1.29132231,1936.0,1935.2,0.0011]
[1772435142373,1.2916559,1935.5,1935.2,0.0011]
[1772435143587,1.29162876,1935.6,1935.2,0.0011]
[1772435144239,3.13565285,1935.7,1935.2,0.0011]
[1772435145051,1.29138901,1935.9,1935.2,0.0011]
[1772435145859,3.68829714,1936.1,1935.2,0.0011]
[1772435146212,1.29129714,1936.1,1935.3,2.13691052]
[1772435146375,1.84410675,1935.9,1935.2,0.0011]
[1772435146739,1.29145572,1935.8,1935.2,0.0011]
[1772435146954,3.13636236,1936.2,1935.2,0.0011]
[1772435147270,7.02459343,1936.1,1935.2,0.0011]
[1772435147447,1.85946602,1936.0,1935.2,0.0011]
[1772435147642,1.85946602,1935.9,1935.2,0.0011]
[1772435148749,1.29145572,1935.8,1935.2,0.0011]
[1772435148948,1.85946602,1935.7,1935.2,0.0011]
[1772435150766,1.2916559,1935.5,1935.2,0.0011]
[1772435151115,3.15112192,1935.5,1935.3,0.0011]
[1772435152504,3.15097357,1935.8,1935.3,0.0011]
[1772435152723,1.85946602,1935.8,1935.3,0.0011]
[1772435152998,1.2916559,1935.5,1935.2,0.0011]
[1772435153581,1.85946602,1935.3,1935.0,0.00263886]
[1772435153764,1.2916559,1935.5,1935.0,0.00263886]
[1772435153970,1.85946602,1935.6,1935.0,0.00263886]
[1772435154186,3.15107061,1935.6,1935.0,0.00263886]
[1772435155369,1.85946602,1935.5,1935.0,0.00263886]
[1772435155873,1.29157548,1935.7,1935.0,0.00263886]
[1772435156473,2.4,1936.0,1935.1,2.13691052]
[1772435156675,2.4,1936.0,1935.0,1.91481858]
[1772435156881,1.29138901,1935.9,1935.1,1.29192289]
[1772435157613,0.001,1936.2,1935.5,1.90647808]
[1772435157819,0.001,1936.2,1935.2,2.13691052]
[1772435157820,1.29218994,1936.2,1935.2,2.13691052]
[1772435158110,1.29218994,1936.2,1935.2,4.0433886]